{"text_format":"1","workbook":"xlsx","n_sheets":4,"sheets":["_Оглавление","Бабенко Лидия Захаровна","Балясная Ирина Фёдоровна","Бондарь Евгений Евтихиевич"],"not_rendered":{"charts":3,"images":0,"macros":0,"external_links":0,"defined_names":1,"comments":0,"pivot_tables":0},"unopened":[],"bounds":{"document_bytes":16777216,"sheet_cells":100000,"rows_first":2000,"rows_last":500,"rows_between":2000,"halvings":0,"cell_chars":16384,"cell_head_chars":4096},"cells_cut":0,"cells_raw":0,"read":"whole","date_system":"1900"}

{"sheet":"_Оглавление","index":0,"n_rows":50,"n_cols":14,"rows_kept":50,"cut":false,"hidden":false,"merged":[]}
[null,"Гематокрит (%)","Гемоглобин (г/л)","Индекс атерогенности","Кальций (ммоль/л)","ЛПВ (ммоль/л)","ЛНП (ммоль/л)","Паратгормон (пг/мл)","Триглицериды","Тромбоциты","Фосфор","Холестерин","Щелочная фосфотаза","Эритроциты"]
[{"$f":"HYPERLINK(\"#'\"&IFERROR(INDEX(Оглавление, ROW())&\"'!A1\",\"\"),IFERROR(INDEX(Оглавление, ROW()),\"\"))","v":"Бабенко Лидия Захаровна"},null,null,null,{"$f":"LOOKUP(9E+307,INDIRECT(\"'\"&A2&\"'!B4:XFD4\"))","v":2.89},null,null,{"$f":"LOOKUP(9E+307,INDIRECT(\"'\"&A2&\"'!B5:XFD5\"))","v":1458}]
["Балясная Ирина Фёдоровна"]
["Бондарь Евгений Евтихиевич"]
[""]
[""]
[""]
[""]
[""]
[""]
[""]
[""]
[""]
[""]
[""]
[""]
[""]
[""]
[""]
[""]
[""]
[""]
[""]
[""]
[""]
[""]
[""]
[""]
[""]
[""]
[""]
[""]
[""]
[{"$f":"HYPERLINK(\"#'\"&IFERROR(INDEX(Оглавление, ROW())&\"'!A1\",\"\"),IFERROR(INDEX(Оглавление, ROW()),\"\"))","v":""}]
[""]
[""]
[""]
[""]
[""]
[""]
[""]
[""]
[""]
[""]
[""]
[""]
[""]
[""]
[""]
[""]

{"sheet":"Бабенко Лидия Захаровна","index":1,"n_rows":8,"n_cols":3,"rows_kept":8,"cut":false,"hidden":false,"merged":[]}
[{"$f":"HYPERLINK(\"#_Оглавление!A1\",\"НАЗАД К ОГЛАВЛЕНИЮ\")","v":"НАЗАД К ОГЛАВЛЕНИЮ"},"2013-08-01","2013-08-16"]
["Гематокрит (%)"]
["Гемоглобин (г/л)"]
["Кальций (ммоль/л)",2.1800000000000002,2.89]
["Паратгормон (пг/мл)",2089,1458]
["Фосфор (ммоль/л)",1.1000000000000001,1.47]
["Щелочная фосфотаза"]
["Эритроциты (1012 кл/л)"]

{"sheet":"Балясная Ирина Фёдоровна","index":2,"n_rows":8,"n_cols":2,"rows_kept":8,"cut":false,"hidden":false,"merged":[]}
[{"$f":"HYPERLINK(\"#_Оглавление!A1\",\"НАЗАД К ОГЛАВЛЕНИЮ\")","v":"НАЗАД К ОГЛАВЛЕНИЮ"},"2012-08-07"]
["Гематокрит (%)"]
["Гемоглобин (г/л)"]
["Кальций (ммоль/л)",2.39]
["Паратгормон (пг/мл)",940]
["Фосфор (ммоль/л)",1.67]
["Щелочная фосфотаза"]
["Эритроциты (1012 кл/л)"]

{"sheet":"Бондарь Евгений Евтихиевич","index":3,"n_rows":8,"n_cols":6,"rows_kept":8,"cut":false,"hidden":false,"merged":[]}
[{"$f":"HYPERLINK(\"#_Оглавление!A1\",\"НАЗАД К ОГЛАВЛЕНИЮ\")","v":"НАЗАД К ОГЛАВЛЕНИЮ"},"2013-07-26","2014-01-09","2014-02-25","2014-04-15","2014-10-02"]
["Гематокрит (%)",null,30.7,33.700000000000003,36.5,43.9]
["Гемоглобин (г/л)",null,88,116,123,144]
["Кальций (ммоль/л)",2.17,null,null,null,2.35]
["Паратгормон (пг/мл)",401.3,null,null,41.9,45.8]
["Фосфор (ммоль/л)",0.89,null,null,null,1.23]
["Щелочная фосфотаза"]
["Эритроциты (1012 кл/л)",null,3.85,3.77,3.99,4.68]